fUST/lending_fUST_20241112
["ID","MTS","AMOUNT","RATE_DAILY","PERIOD"]
[342080427,1731415849210,-500.0,0.00021917,2]
[342080428,1731415849220,-500.0,0.00021917,2]
[342080429,1731415849229,-500.0,0.00021917,2]
[342080430,1731415849238,-532.92453238,0.00021917,2]
[342080431,1731415849247,-500.0,0.00021917,2]
[342080432,1731415849257,-500.0,0.00021917,2]
[342080433,1731415849266,-500.0,0.00021917,2]
[342080434,1731415849275,-500.0,0.00021917,2]
[342080435,1731415849285,-500.0,0.00021917,2]
[342080436,1731415849294,-500.0,0.00021917,2]
[342080437,1731415849304,-500.0,0.00021917,2]
[342080438,1731415849314,-6123.98,0.00021917,2]
[342080439,1731415849323,-500.0,0.00021917,2]
[342080440,1731415849332,-500.0,0.00021917,2]
[342080441,1731415849344,-500.0,0.00021917,2]
[342080442,1731415849353,-981.67,0.00021917,2]
[342080443,1731415849363,-500.0,0.00021917,2]
[342080444,1731415849375,-520.63126266,0.00021917,2]
[342080445,1731415849386,-500.0,0.00021917,2]
[342080446,1731415849395,-500.0,0.00021917,2]
[342080447,1731415849404,-500.0,0.00021917,2]
[342080448,1731415849413,-4612.42,0.00021917,2]
[342080449,1731415849424,-500.0,0.00021917,2]
[342080450,1731415849433,-574.93,0.00021917,2]
[342080451,1731415849442,-500.0,0.00021917,2]
[342080452,1731415849452,-155.43782732,0.00021917,2]
[342080453,1731415849462,-500.0,0.00021917,2]
[342080454,1731415849471,-500.0,0.00021917,2]
[342080455,1731415849481,-500.0,0.00021917,2]
[342080456,1731415849490,-690.77,0.00021917,2]
[342080457,1731415849499,-500.0,0.00021917,2]
[342080458,1731415849509,-557.88,0.00021917,2]
[342080459,1731415849519,-16739.72521551,0.00021917,2]
[342080460,1731415849546,-2087.97478449,0.00021917,2]
[342080461,1731415849555,-500.0,0.00021917,2]
[342080462,1731415849566,-166.666666,0.00021918,2]
[342080463,1731415849576,-1000.0,0.00021918,2]
[342080464,1731415849586,-580.15854951,0.00021972,2]
[342080465,1731415849599,-640.55932982,0.00021972,2]
[342080466,1731415849609,-500.0,0.00021973,2]
[342080467,1731415849619,-541.16999734,0.00021973,2]
[342080468,1731415849633,-502.64882529,0.00021973,2]
[342080469,1731415849642,-199.62686539,0.00021973,2]
[342080470,1731415849651,-500.0,0.00021973,2]
[342080471,1731415849661,-500.0,0.00021973,2]
[342080472,1731415849670,-500.0,0.00021973,2]
[342080473,1731415849679,-500.0,0.00021973,2]
[342080474,1731415849688,-500.0,0.00021973,2]
[342080475,1731415849697,-500.0,0.00021973,2]
[342080476,1731415849706,-349.55908742,0.00021973,2]
[342080477,1731415849715,-160.58836082,0.00021973,2]
[342080478,1731415849724,-501.02361166,0.00021973,2]
[342080479,1731415849734,-564.50305121,0.00021973,2]
[342080480,1731415849743,-500.0,0.00021973,2]
[342080481,1731415849752,-500.0,0.00021973,2]
[342080482,1731415849761,-500.0,0.00021973,2]
[342080483,1731415849770,-500.0,0.00021973,2]
[342080484,1731415849780,-500.0,0.00021973,2]
[342080485,1731415849879,-236.276673,0.00021973,7]
[342080486,1731415849888,-236.276673,0.00021973,7]
[342080487,1731415849897,-151.0,0.00021973,7]
[342080488,1731415849907,-151.0,0.00021973,7]
[342080489,1731415849916,-151.0,0.00021973,7]
[342080490,1731415849924,-216.491807,0.00021973,7]
[342080491,1731415849934,-216.491807,0.00021973,7]
[342080492,1731415849943,-276.495,0.00021973,7]
[342080493,1731415849952,-276.495,0.00021973,7]
[342080494,1731415849961,-151.0,0.00021973,7]
[342080495,1731415849970,-204.266052,0.00021973,7]
[342080496,1731415849980,-204.266052,0.00021973,7]
[342080497,1731415849988,-151.0,0.00021973,7]
[342080498,1731415849998,-151.0,0.00021973,7]
[342080499,1731415850007,-151.0,0.00021973,7]
[342080500,1731415850016,-151.0,0.00021973,7]
[342080501,1731415850025,-359.0,0.00022,2]
[342080502,1731415850034,-159.0,0.00022,2]
[342080503,1731415850043,-167.0,0.00022,2]
[342080504,1731415850052,-235.52034127,0.00022018,2]
[342080505,1731415850061,-151.0,0.00022073,7]
[342080506,1731415850070,-151.0,0.00022094,7]
[342080507,1731415850079,-500.0,0.00022173,2]
[342080508,1731415850088,-500.0,0.00022173,2]
[342080509,1731415850097,-412.2622093,0.00022173,2]
[342080510,1731415850106,-500.0,0.00022173,2]
[342080511,1731415850115,-500.0,0.00022173,2]
[342080512,1731415850124,-500.0,0.00022173,2]
[342080513,1731415850138,-500.0,0.00022173,2]
[342080514,1731415850148,-500.0,0.00022173,2]
[342080515,1731415850157,-500.0,0.00022173,2]
[342080516,1731415850167,-500.0,0.00022173,2]
[342080517,1731415850177,-500.0,0.00022173,2]
[342080518,1731415850186,-500.0,0.00022173,2]
[342080519,1731415850195,-500.0,0.00022173,2]
[342080520,1731415850204,-151.0,0.00022173,7]
[342080521,1731415850213,-153.06993764,0.0002219,2]
[342080522,1731415850222,-5840.3608456,0.0002219,2]
[342080523,1731415850231,-151.0,0.0002219,7]
[342080524,1731415850240,-194.788329,0.0002219,7]
[342080525,1731415850249,-151.0,0.0002219,7]
[342080526,1731415850258,-151.0,0.0002219,7]
[342080527,1731415850267,-151.0,0.0002219,7]
[342080528,1731415850276,-151.0,0.0002219,7]
[342080529,1731415850285,-500.0,0.00022191,2]
[342080530,1731415850294,-151.0,0.00022191,7]
[342080531,1731415850303,-151.0,0.00022191,7]
[342080532,1731415850312,-151.0,0.00022191,7]
[342080533,1731415850321,-151.0,0.00022191,7]
[342080534,1731415850330,-151.0,0.00022191,7]
[342080535,1731415850339,-151.0,0.00022191,7]
[342080536,1731415850350,-171.669202,0.00022191,7]
[342080537,1731415850359,-327.21431306,0.00022191,2]
[342080538,1731415850369,-500.0,0.00022191,2]
[342080539,1731415850383,-500.0,0.00022191,2]
[342080540,1731415850391,-1970.9,0.00022191,2]
[342080541,1731415850400,-500.0,0.00022191,2]
[342080542,1731415850409,-508.30146273,0.00022191,2]
[342080543,1731415850418,-507.71012844,0.00022191,2]
[342080544,1731415850430,-236.276673,0.00022191,7]
[342080545,1731415850440,-236.276673,0.00022191,7]
[342080546,1731415850448,-236.276673,0.00022191,7]
[342080547,1731415850457,-236.276673,0.00022191,7]
[342080548,1731415850466,-236.276673,0.00022191,7]
[342080549,1731415850475,-236.276673,0.00022191,7]
[342080550,1731415850484,-500.0,0.00022191,2]
[342080551,1731415850493,-236.276673,0.00022191,7]
[342080552,1731415850503,-236.276673,0.00022191,7]
[342080553,1731415850512,-236.276673,0.00022191,7]
[342080554,1731415850521,-236.276673,0.00022191,7]
[342080555,1731415850530,-236.276673,0.00022191,7]
[342080556,1731415850539,-236.27667,0.00022191,7]
[342080557,1731415850548,-500.0,0.00022191,2]
[342080558,1731415850556,-500.0,0.00022191,2]
[342080559,1731415850566,-500.0,0.00022191,2]
[342080560,1731415850575,-500.0,0.00022191,2]
[342080561,1731415850584,-313.65462307,0.00022191,2]
[342080562,1731415850593,-500.0,0.00022191,2]
[342080563,1731415850602,-500.0,0.00022191,2]
[342080564,1731415850611,-247.67720056,0.00022191,2]
[342080565,1731415850620,-500.0,0.00022191,2]
[342080566,1731415850633,-504.88144218,0.00022191,2]
[342080567,1731415850642,-400.34835242,0.00022191,2]
[342080568,1731415850651,-613.97278429,0.00022191,2]
[342080569,1731415850661,-151.0,0.00022191,7]
[342080570,1731415850671,-184.37853292,0.00022191,2]
[342080571,1731415850680,-162.925391,0.00022191,7]
[342080572,1731415850689,-566.07616342,0.00022191,2]
[342080573,1731415850698,-500.0,0.00022191,2]
[342080574,1731415850707,-500.0,0.00022191,2]
[342080575,1731415850716,-500.0,0.00022191,2]
[342080576,1731415850725,-500.0,0.00022191,2]
[342080577,1731415850735,-500.0,0.00022191,2]
[342080578,1731415850745,-500.0,0.00022191,2]
[342080579,1731415850754,-500.0,0.00022191,2]
[342080580,1731415850763,-500.0,0.00022191,2]
[342080581,1731415850772,-500.0,0.00022191,2]
[342080582,1731415850782,-500.0,0.00022191,2]
[342080583,1731415850791,-500.0,0.00022191,2]
[342080584,1731415850800,-500.0,0.00022191,2]
[342080585,1731415850809,-500.0,0.00022191,2]
[342080586,1731415850818,-194.788329,0.00022191,7]
[342080587,1731415850827,-194.788329,0.00022191,7]
[342080588,1731415850837,-194.788329,0.00022191,7]
[342080589,1731415850846,-194.788329,0.00022191,7]
[342080590,1731415850855,-500.0,0.00022191,2]
[342080591,1731415850864,-194.788329,0.00022191,7]
[342080592,1731415850873,-194.788329,0.00022191,7]
[342080593,1731415850886,-194.788323,0.00022191,7]
[342080594,1731415850895,-500.0,0.00022191,2]
[342080595,1731415850904,-500.0,0.00022191,2]
[342080596,1731415850913,-500.0,0.00022191,2]
[342080597,1731415850923,-500.0,0.00022191,2]
[342080598,1731415850932,-500.0,0.00022191,2]
[342080599,1731415850941,-604.69736425,0.00022191,2]
[342080600,1731415850950,-500.0,0.00022191,2]
[342080601,1731415850959,-500.0,0.00022191,2]
[342080602,1731415850968,-500.0,0.00022191,2]
[342080603,1731415850977,-500.0,0.00022191,2]
[342080604,1731415850986,-500.0,0.00022191,2]
[342080605,1731415850995,-301.17160265,0.00022191,2]
[342080606,1731415851004,-500.0,0.00022191,2]
[342080607,1731415851013,-1013.73,0.00022191,2]
[342080608,1731415851022,-500.0,0.00022191,2]
[342080609,1731415851031,-753.82,0.00022191,2]
[342080610,1731415851040,-151.0,0.00022191,7]
[342080611,1731415851049,-151.0,0.00022191,7]
[342080612,1731415851059,-151.0,0.00022191,7]
[342080613,1731415851069,-151.0,0.00022191,7]
[342080614,1731415851079,-500.0,0.00022191,2]
[342080615,1731415851089,-500.0,0.00022191,2]
[342080616,1731415851098,-151.0,0.00022191,7]
[342080617,1731415851107,-256.36867,0.00022191,7]
[342080618,1731415851117,-500.0,0.00022191,2]
[342080619,1731415851126,-500.0,0.00022191,2]
[342080620,1731415851139,-500.0,0.00022191,2]
[342080621,1731415851148,-151.0,0.00022191,7]
[342080622,1731415851158,-301.543532,0.00022191,7]
[342080623,1731415851168,-500.0,0.00022191,2]
[342080624,1731415851177,-544.45,0.00022191,2]
[342080625,1731415851186,-151.0,0.00022191,7]
[342080626,1731415851195,-260.797554,0.00022191,7]
[342080627,1731415851204,-500.0,0.00022191,2]
[342080628,1731415851213,-500.0,0.00022191,2]
[342080629,1731415851222,-500.0,0.00022191,2]
[342080630,1731415851231,-151.0,0.00022191,7]
[342080631,1731415851241,-151.0,0.00022191,7]
[342080632,1731415851250,-151.0,0.00022191,7]
[342080633,1731415851259,-164.199376,0.00022191,7]
[342080634,1731415851268,-500.0,0.00022191,2]
[342080635,1731415851277,-500.0,0.00022191,2]
[342080636,1731415851287,-500.0,0.00022191,2]
[342080637,1731415851296,-500.0,0.00022191,2]
[342080638,1731415851305,-500.0,0.00022191,2]
[342080639,1731415851314,-500.0,0.00022191,2]
[342080640,1731415851323,-151.0,0.00022191,7]
[342080641,1731415851331,-151.0,0.00022191,7]
[342080642,1731415851341,-500.0,0.00022191,2]
[342080643,1731415851353,-151.0,0.00022191,7]
[342080644,1731415851362,-151.0,0.00022191,7]
[342080645,1731415851372,-151.0,0.00022191,7]
[342080646,1731415851385,-708.37,0.00022191,2]
[342080647,1731415851394,-500.0,0.00022191,2]
[342080648,1731415851403,-500.0,0.00022191,2]
[342080649,1731415851413,-500.0,0.00022191,2]
[342080650,1731415851423,-642.83152483,0.00022191,2]
[342080651,1731415851435,-500.0,0.00022191,2]
[342080652,1731415851444,-500.0,0.00022191,2]
[342080653,1731415851453,-500.0,0.00022191,2]
[342080654,1731415851462,-500.0,0.00022191,2]
[342080655,1731415851471,-500.0,0.00022191,2]
[342080656,1731415851480,-500.0,0.00022191,2]
[342080657,1731415851489,-500.0,0.00022191,2]
[342080658,1731415851498,-500.0,0.00022191,2]
[342080659,1731415851507,-522.92349765,0.00022191,2]
[342080660,1731415851517,-500.0,0.00022191,2]
[342080661,1731415851526,-500.0,0.00022191,2]
[342080662,1731415851534,-500.0,0.00022191,2]
[342080663,1731415851543,-202.54995033,0.00022191,2]
[342080664,1731415851552,-216.491807,0.00022191,7]
[342080665,1731415851561,-216.491807,0.00022191,7]
[342080666,1731415851570,-216.491807,0.00022191,7]
[342080667,1731415851579,-216.491807,0.00022191,7]
[342080668,1731415851588,-216.491807,0.00022191,7]
[342080669,1731415851597,-216.491807,0.00022191,7]
[342080670,1731415851606,-216.491807,0.00022191,7]
[342080671,1731415851615,-151.272415,0.00022191,7]
[342080672,1731415851624,-151.272415,0.00022191,7]
[342080673,1731415851638,-216.491807,0.00022191,7]
[342080674,1731415851647,-151.272415,0.00022191,7]
[342080675,1731415851656,-216.491807,0.00022191,7]
[342080676,1731415851665,-151.272415,0.00022191,7]
[342080677,1731415851674,-500.0,0.00022191,2]
[342080678,1731415851683,-216.491808,0.00022191,7]
[342080679,1731415851693,-151.272415,0.00022191,7]
[342080680,1731415851703,-151.272415,0.00022191,7]
[342080681,1731415851712,-151.272415,0.00022191,7]
[342080682,1731415851721,-151.272415,0.00022191,7]
[342080683,1731415851731,-151.272415,0.00022191,7]
[342080684,1731415851740,-500.0,0.00022191,2]
[342080685,1731415851749,-151.272409,0.00022191,7]
[342080686,1731415851758,-2336.0,0.00022191,2]
[342080687,1731415851767,-500.0,0.00022191,2]
[342080688,1731415851855,-500.0,0.00022191,2]
[342080689,1731415851865,-2246.25,0.00022191,2]
[342080690,1731415851874,-500.0,0.00022191,2]
[342080691,1731415851886,-500.0,0.00022191,2]
[342080692,1731415851895,-500.0,0.00022191,2]
[342080693,1731415851904,-500.0,0.00022191,2]
[342080694,1731415851913,-500.0,0.00022191,2]
[342080695,1731415851922,-500.0,0.00022191,2]
[342080696,1731415851931,-500.0,0.00022191,2]
[342080697,1731415851941,-500.12319734,0.00022191,2]
[342080698,1731415851950,-503.67010491,0.00022191,2]
[342080699,1731415851959,-657.25,0.00022191,2]
[342080700,1731415851969,-500.0,0.00022191,2]
[342080701,1731415851980,-500.0,0.00022191,2]
[342080702,1731415851991,-500.0,0.00022191,2]
[342080703,1731415852001,-500.0,0.00022191,2]
[342080704,1731415852010,-500.0,0.00022191,2]
[342080705,1731415852019,-500.0,0.00022191,2]
[342080706,1731415852028,-500.0,0.00022191,2]
[342080707,1731415852038,-883.62,0.00022191,2]
[342080708,1731415852048,-500.0,0.00022191,2]
[342080709,1731415852057,-500.0,0.00022191,2]
[342080710,1731415852066,-500.0,0.00022191,2]
[342080711,1731415852075,-1011.75,0.00022191,2]
[342080712,1731415852084,-373.71040199,0.00022191,2]
[342080713,1731415852093,-522.59,0.00022191,2]
[342080714,1731415852102,-1831.69,0.00022191,2]
[342080715,1731415852111,-500.0,0.00022191,2]
[342080716,1731415852120,-500.0,0.00022191,2]
[342080717,1731415852132,-1511.38,0.00022191,2]
[342080718,1731415852142,-504.22219023,0.00022191,2]
[342080719,1731415852151,-500.0,0.00022191,2]
[342080720,1731415852160,-648.42,0.00022191,2]
[342080721,1731415852169,-1290.58,0.00022191,2]
[342080722,1731415852178,-511.44,0.00022191,2]
[342080723,1731415852187,-500.0,0.00022191,2]
[342080724,1731415852198,-500.0,0.00022191,2]
[342080725,1731415852207,-500.0,0.00022191,2]
[342080726,1731415852216,-500.0,0.00022191,2]
[342080727,1731415852226,-276.495,0.00022191,7]
[342080728,1731415852236,-276.495,0.00022191,7]
[342080729,1731415852245,-500.0,0.00022191,2]
[342080730,1731415852255,-500.0,0.00022191,2]
[342080731,1731415852264,-276.495,0.00022191,7]
[342080732,1731415852273,-276.495,0.00022191,7]
[342080733,1731415852283,-276.495,0.00022191,7]
[342080734,1731415852293,-1089.53,0.00022191,2]
[342080735,1731415852302,-500.0,0.00022191,2]
[342080736,1731415852312,-276.495,0.00022191,7]
[342080737,1731415852321,-1225.07,0.00022191,2]
[342080738,1731415852330,-500.0,0.00022191,2]
[342080739,1731415852340,-276.495,0.00022191,7]
[342080740,1731415852352,-276.495,0.00022191,7]
[342080741,1731415852362,-500.0,0.00022191,2]
[342080742,1731415852371,-276.495,0.00022191,7]
[342080743,1731415852384,-276.495,0.00022191,7]
[342080744,1731415852393,-6623.63,0.00022191,2]
[342080745,1731415852402,-500.0,0.00022191,2]
[342080746,1731415852411,-570.66,0.00022191,2]
[342080747,1731415852421,-500.0,0.00022191,2]
[342080748,1731415852432,-500.0,0.00022191,2]
[342080749,1731415852441,-601.15369467,0.00022191,2]
[342080750,1731415852450,-737.22,0.00022191,2]
[342080751,1731415852459,-533.19447709,0.00022191,2]
[342080752,1731415852469,-500.0,0.00022191,2]
[342080753,1731415852478,-500.0,0.00022191,2]
[342080754,1731415852487,-500.0,0.00022191,2]
[342080755,1731415852496,-1135.36,0.00022191,2]
[342080756,1731415852505,-500.0,0.00022191,2]
[342080757,1731415852515,-502.6,0.00022191,2]
[342080758,1731415852524,-928.66,0.00022191,2]
[342080759,1731415852534,-500.0,0.00022191,2]
[342080760,1731415852544,-973.77,0.00022191,2]
[342080761,1731415852553,-500.0,0.00022191,2]
[342080762,1731415852563,-500.0,0.00022191,2]
[342080763,1731415852573,-1151.96,0.00022191,2]
[342080764,1731415852583,-946.24,0.00022191,2]
[342080765,1731415852592,-2937.22,0.00022191,2]
[342080766,1731415852601,-151.0,0.00022191,7]
[342080767,1731415852610,-204.266052,0.00022191,7]
[342080768,1731415852619,-151.0,0.00022191,7]
[342080769,1731415852629,-151.0,0.00022191,7]
[342080770,1731415852639,-204.266052,0.00022191,7]
[342080771,1731415852648,-179.660569,0.00022191,7]
[342080772,1731415852657,-204.266052,0.00022191,7]
[342080773,1731415852666,-204.266052,0.00022191,7]
[342080774,1731415852675,-204.266052,0.00022191,7]
[342080775,1731415852685,-500.0,0.00022191,2]
[342080776,1731415852694,-182.03736068,0.00022191,2]
[342080777,1731415852703,-204.266052,0.00022191,7]
[342080778,1731415852713,-204.266052,0.00022191,7]
[342080779,1731415852722,-204.266052,0.00022191,7]
[342080780,1731415852731,-204.266052,0.00022191,7]
[342080781,1731415852740,-204.266059,0.00022191,7]
[342080782,1731415852749,-500.0,0.00022191,2]
[342080783,1731415852758,-500.0,0.00022191,2]
[342080784,1731415852767,-500.0,0.00022191,2]
[342080785,1731415852777,-1327.75,0.00022191,2]
[342080786,1731415852786,-325.06644976,0.00022191,2]
[342080787,1731415852794,-625.42045839,0.00022191,2]
[342080788,1731415852804,-503.09023533,0.00022191,2]
[342080789,1731415852814,-500.0,0.00022191,2]
[342080790,1731415852823,-500.0,0.00022191,2]
[342080791,1731415852833,-7711.53,0.00022191,2]
[342080792,1731415852842,-500.0,0.00022191,2]
[342080793,1731415852851,-857.71,0.00022191,2]
[342080794,1731415852860,-500.0,0.00022191,2]
[342080795,1731415852869,-500.0,0.00022191,2]
[342080796,1731415852880,-500.0,0.00022191,2]
[342080797,1731415852889,-500.0,0.00022191,2]
[342080798,1731415852898,-745.71,0.00022191,2]
[342080799,1731415852908,-500.0,0.00022191,2]
[342080800,1731415852917,-500.0,0.00022191,2]
[342080801,1731415852926,-500.0,0.00022191,2]
[342080802,1731415852935,-500.0,0.00022191,2]
[342080803,1731415852945,-611.57841997,0.00022191,2]
[342080804,1731415852953,-294.230056,0.00022191,7]
[342080805,1731415852963,-151.0,0.00022191,7]
[342080806,1731415852972,-151.0,0.00022191,7]
[342080807,1731415852982,-151.0,0.00022191,7]
[342080808,1731415852991,-151.0,0.00022191,7]
[342080809,1731415853000,-253.09179798,0.00022191,2]
[342080810,1731415853009,-151.0,0.00022191,7]
[342080811,1731415853018,-500.0,0.00022191,2]
[342080812,1731415853028,-244.457539,0.00022191,7]
[342080813,1731415853037,-500.0,0.00022191,2]
[342080814,1731415853046,-500.0,0.00022191,2]
[342080815,1731415853055,-3252.92,0.00022191,2]
[342080816,1731415853064,-500.0,0.00022191,2]
[342080817,1731415853073,-500.0,0.00022191,2]
[342080818,1731415853082,-1541.89,0.00022191,2]
[342080819,1731415853091,-500.0,0.00022191,2]
[342080820,1731415853101,-11692.14,0.00022191,2]
[342080821,1731415853109,-613.85,0.00022191,2]
[342080822,1731415853119,-500.0,0.00022191,2]
[342080823,1731415853130,-151.0,0.00022191,7]
[342080824,1731415853140,-151.0,0.00022191,7]
[342080825,1731415853149,-157.710948,0.00022191,7]
[342080826,1731415853158,-500.0,0.00022191,2]
[342080827,1731415853167,-500.0,0.00022191,2]
[342080828,1731415853176,-500.0,0.00022191,2]
[342080829,1731415853185,-500.0,0.00022191,2]
[342080830,1731415853194,-500.0,0.00022191,2]
[342080831,1731415853203,-500.0,0.00022191,2]
[342080832,1731415853212,-6123.98,0.00022191,2]
[342080833,1731415853221,-500.0,0.00022191,2]
[342080834,1731415853230,-500.0,0.00022191,2]
[342080835,1731415853239,-981.67,0.00022191,2]
[342080836,1731415853248,-500.0,0.00022191,2]
[342080837,1731415853257,-500.0,0.00022191,2]
[342080838,1731415853265,-500.0,0.00022191,2]
[342080839,1731415853274,-500.0,0.00022191,2]
[342080840,1731415853283,-4612.42,0.00022191,2]
[342080841,1731415853292,-500.0,0.00022191,2]
[342080842,1731415853302,-574.93,0.00022191,2]
[342080843,1731415853311,-500.0,0.00022191,2]
[342080844,1731415853320,-500.0,0.00022191,2]
[342080845,1731415853330,-500.0,0.00022191,2]
[342080846,1731415853340,-500.0,0.00022191,2]
[342080847,1731415853350,-690.77,0.00022191,2]
[342080848,1731415853360,-500.0,0.00022191,2]
[342080849,1731415853369,-557.88,0.00022191,2]
[342080850,1731415853380,-4345.58401634,0.00022191,2]
[342080851,1731415853398,-4353.5,0.00022191,2]
[342080852,1731415857741,11058.0,0.0002,7]
[342080853,1731415869633,150.47,0.00021,30]
[342080865,1731415983095,163.395681,0.00013973,2]
[342080866,1731416154378,155.43632305,0.000208,2]
[342080877,1731416221184,1339.271922,0.00020792,2]
[342080887,1731416391029,1169.27083333,0.00020843,2]
[342080888,1731416405281,151.14398647,0.00027,60]
[342080895,1731416529783,467.89,0.00020843,2]
[342080897,1731416601680,1385100.91365617,0.0002076,4]
[342080902,1731416791810,192.22845666,0.00027,60]
[342080903,1731416832354,163.395681,0.00013973,2]
[342080908,1731416942641,6003.30610228,0.00027,60]
[342081017,1731417035344,-734.28659185,0.00020743,2]
[342081018,1731417035354,-2088.61220477,0.00020743,2]
[342081019,1731417035363,-186.63031742,0.00020759,2]
[342081020,1731417035372,-284.9126123,0.00020759,2]
[342081021,1731417035382,-300.0,0.00020759,2]
[342081022,1731417035391,-300.0,0.00020759,2]
[342081023,1731417035400,-344.89573362,0.0002076,2]
[342081024,1731417035409,-31.0066511,0.0002076,4]
[342081025,1731417035421,-7033.14229891,0.0002076,4]
[342081026,1731417035432,-851.14721614,0.0002076,4]
[342081078,1731417038617,-43111.0,0.0002076,4]
[342081080,1731417038675,-1319.271922,0.0002076,4]
[342081119,1731417043736,-344.111,0.0002076,4]
[342081121,1731417043760,-4763.73327144,0.0002076,4]
[342081157,1731417046445,-863.8,0.0002076,4]
[342081167,1731417724147,163.395681,0.00013973,2]
[342081182,1731418195987,-160.0,0.00020297,2]
[342081183,1731418196009,-314.8,0.0002066,2]
[342081184,1731418196030,-291.79022063,0.0002066,2]
[342081185,1731418196051,-642.50076786,0.000207,2]
[342081186,1731418196075,-1678.69729184,0.00020743,2]
[342081187,1731418196100,-252.0,0.00020759,2]
[342081188,1731418196224,-300.0,0.00020759,2]
[342081189,1731418196247,-422.44514882,0.0002076,2]
[342081190,1731418196270,-485572.76657085,0.0002076,4]
[342081209,1731418232623,-957.41804705,0.0002066,2]
[342081210,1731418232636,-408.13,0.0002066,2]
[342081278,1731418238917,-1098.37731256,0.0002066,2]
[342081279,1731418238929,-1287.56112789,0.0002066,2]
[342081283,1731418240486,-898.71514,0.0002066,2]
[342081292,1731418243668,-6078.39854686,0.0002066,2]
[342081293,1731418243680,-4259.75074732,0.0002066,2]
[342081325,1731418246627,-9219.87419331,0.0002066,2]
[342081327,1731418323736,1353.246931,0.00019766,2]
[342081328,1731418340832,175.31531,0.00019492,2]
[342081333,1731418526450,163.055975,0.00013973,2]
[342081334,1731418584976,173.50667,0.0001972,2]
[342081335,1731418585215,173.50667,0.00019819,2]
[342081336,1731418600250,285.828219,0.0001977,2]
[342081353,1731419016062,268.625096,0.00019766,2]
[342081439,1731419394763,163.055975,0.00013973,2]
[342081497,1731419435779,-194.69624758,0.00020308,2]
[342081499,1731419435789,-268.625096,0.00020451,2]
[342081501,1731419435801,-300.0,0.00020659,2]
[342081502,1731419435810,-26.51517542,0.00020659,2]
[342081503,1731419435823,-273.48482458,0.00020659,2]
[342081504,1731419435832,-281.63009921,0.0002066,2]
[342081505,1731419435841,-12687.7929759,0.0002066,2]
[342081506,1731419435886,-352.99997,0.0002066,2]
[342081507,1731419435897,-427.205,0.0002066,2]
[342081532,1731419438868,-342.29441074,0.0002066,2]
[342081533,1731419438880,-70358.02589448,0.0002066,2]
[342081534,1731419438890,-10010.13741339,0.0002076,4]
[342081535,1731419438900,-551.15,0.000208,2]
[342081536,1731419438909,-1169.27083333,0.00020843,2]
[342081537,1731419438919,-3922.89062064,0.00021,2]
[342081538,1731419438928,-268.625096,0.00021136,2]
[342081539,1731419438938,-2987.0,0.00021677,2]
[342081540,1731419438947,-1000.0,0.00021817,2]
[342081541,1731419438957,-1519.47945431,0.00021817,2]
[342081542,1731419438966,-150.0,0.000219,2]
[342081543,1731419438976,-199.43882861,0.00021916,2]
[342081544,1731419438987,-151.0,0.00021917,2]